Cogmind - Beta 17.1 @@@ ROGUE MODE // 2026.09.17 @ 11:12:47 Player: cel Result: Destroyed by Y-45 Defender with Heavy Assault Rifle Performance ------------- Evolutions (2) 1000 Regions Visited (3) 600 Robots Destroyed (18) 90 Value Destroyed (480) 480 Prototype IDs (0) 0 Alien Tech Used (0) 0 Bonus (0) 0 TOTAL SCORE: 2170 Bonus ------- None Cogmind --------- Core Integrity 0/550 Matter 356/450 Energy 88/100 System Corruption 0% Temperature Cool (9) Movement Walking (190) Ox1 Location -8/Materials Parts ------- > --- POWER (1) -------- (None) > --- PROPULSION (4) --- Aluminum Leg > --- UTILITY (4) ------ Medium Storage Unit Large Matter Pod Trap Scanner > --- WEAPON (2) ------- Plasma Cutter Great Maul > --- INVENTORY (10) --- Light Ion Engine Large Storage Unit ECM Suite Improved Datajack Peak State ------------ > --- POWER ------------ Deuterium Engine > --- PROPULSION ------- Aluminum Leg Aluminum Leg Wheel Armored Wheel > --- UTILITY ---------- Improved Heat Sink Medium Storage Unit Trap Scanner Improved Light Armor Plating > --- WEAPON ----------- Light Assault Rifle Great Maul > --- INVENTORY -------- Light Ion Engine Light Ion Engine Large Storage Unit Large Matter Pod ECM Suite Light Armor Plating Particle Cannon Light Assault Rifle Improved Datajack Plasma Cutter [Rating: 23] Favorites ----------- Power Ion Engine Engine Ion Engine Power Core Light Nuclear Core Propulsion Aluminum Leg Leg Aluminum Leg Wheel Armored Wheel Utility Medium Storage Unit Device ECM Suite Storage Medium Storage Unit Protection Power Shielding Weapon Assault Rifle Energy Gun Small Laser Energy Cannon Particle Cannon Ballistic Gun Assault Rifle Special Weapon Plasma Cutter Impact Weapon Great Maul Slashing Weapon Katana Build | -11 -10 -9 -8 ------- Run | Yrd Mat Mat Mat Slots Evolved 4 | . . 2 2 Power . | . . . . Propulsion 2 | . . 2 . Utility 2 | . . . 2 Weapon . | . . . . Parts Attached 35 | 7 4 7 17 Power 5 | 1 1 . 3 Engine 4 | 1 1 . 2 Core 1 | . . . 1 Reactor . | . . . . Propulsion 11 | 2 1 5 3 Treads . | . . . . Leg 7 | 2 1 1 3 Wheel 4 | . . 4 . Hover . | . . . . Flight . | . . . . Utility 10 | 1 1 1 7 Device 3 | . . . 3 Storage 3 | 1 . 1 1 Processor . | . . . . Hackware . | . . . . Protection 4 | . 1 . 3 Artifact . | . . . . Weapon 9 | 3 1 1 4 Energy Gun 1 | 1 . . . Energy Cannon 1 | . . . 1 Ballistic Gun 4 | 2 1 . 1 Ballistic Cannon . | . . . . Launcher . | . . . . Special Weapon 1 | . . . 1 Impact Weapon 1 | . . . 1 Slashing Weapon 1 | . . 1 . Piercing Weapon . | . . . . Special Melee Weapon . | . . . . Unidentified Prototypes . | . . . . Parts Lost 24 | . 1 7 16 Power 5 | . 1 . 4 Propulsion 9 | . . 4 5 Utility 4 | . . . 4 Weapon 6 | . . 3 3 Highest Loss Streak 12 | . 1 3 12 To Critical Strikes . | . . . . Average Backups 7 | 1 6 8 8 Power 2 | . 3 3 2 Propulsion 1 | 1 2 1 . Utility 1 | . . 1 2 Weapon 1 | . 1 1 1 Tool/Special . | . . . . Unused Backups 4 | . . . 4 Power 2 | . . . 2 Propulsion . | . . . . Utility 1 | . . . 1 Weapon . | . . . . Tool/Special 1 | . . . 1 Average Slot Usage (%) 86 | . 90 88 83 Engine 9 | . 12 11 5 Leg 15 | . 28 12 11 Wheel 14 | . . 21 15 Device 4 | . . . 10 Storage 11 | . 14 11 9 Protection 10 | . 6 11 12 Energy Gun 5 | . 14 6 . Ballistic Gun 10 | . 14 10 7 Impact Weapon 2 | . . . 5 Slashing Weapon 2 | . . 4 3 Peak Build Rating 23 | 6 7 12 23 Average Rating 11 | 4 6 10 15 On Entrance 6 | . 6 7 12 Avg Prop Armor Cover (%) 11 | . . 13 10 Naked Turns . | . . . . Heaviest Build 30 | 13 14 20 30 Greatest Support 38 | 20 20 38 38 Greatest Overweight (x) 6 | 3 . 5 6 Average Overweight (x) . | 1 . . . Largest Inventory Capacity 10 | 8 8 10 10 Average Capacity 9 | 7 8 9 10 Most Carried 10 | 4 8 10 10 Average Carried 7 | 1 6 8 8 Final Capacity 10 | 8 8 10 10 Final Carried 8 | 4 8 8 4 Class Distribution -------------------- 76% | Mutant 23% | Scavenger-Mutant Dominant Class ---------------- Mutant | -10/Materials Mutant | -9/Materials Scavenger-Mutant | -8/Materials Resources | -11 -10 -9 -8 ----------- Run | Yrd Mat Mat Mat Matter Collected 745 | 210 125 166 244 Remotely . | . . . . Salvage Created 534 | . 150 230 154 Parts 34 | . 10 17 7 Haulers Intercepted . | . . . . Recyclers Shooed . | . . . . Parts Field Recycled . | . . . . Retrieved Matter . | . . . . Parts Self-Destructed . | . . . . Prevented . | . . . . Parts Restored . | . . . . Kills | -11 -10 -9 -8 ------- Run | Yrd Mat Mat Mat Combat Hostiles Destroyed 16 | . 5 8 3 Melee 2 | . . 2 . Guns 14 | . 5 6 3 Classes Destroyed 6 | . 3 2 1 Worker 1 | . 1 . . Watcher 1 | . . 1 . Swarmer 6 | . 3 3 . Grunt 8 | . 2 4 2 Duelist 1 | . . 1 . Sentry 1 | . . . 1 Best Kill Streak 4 | . 3 4 1 Combat Bots Only 4 | . 3 4 1 Max Kills in Single Turn 2 | . 2 1 1 Gunslinging 1 | . 1 . . Exploded . | . . . . Melee 1 | . . 1 . Uniques/NPCs Destroyed . | . . . . Combat | -11 -10 -9 -8 -------- Run | Yrd Mat Mat Mat Hostile Shots Fired 286 | . 50 42 194 Missed 80 | . 13 15 52 Hits 206 | . 37 27 142 Melee 4 | . . 4 . Projectile 202 | . 37 23 142 AOE 1 | . . 1 . Critical Strikes 9 | . . 1 8 Actively Blocked 1 | . . 1 . Damage Taken 3004 | . 374 532 2098 Core 692 | . 82 52 558 Absorbed by Shields . | . . . . Redirected to Shielding 150 | . 21 20 109 Core Remaining (%) 84 | 100 67 87 . Volleys Fired 103 | . 21 27 55 Largest 2 | . 2 2 2 Hottest 88 | . 60 60 88 Shots Fired 142 | . 42 39 61 Gun 129 | . 42 39 48 Cannon 8 | . . . 8 Launcher . | . . . . Special 5 | . . . 5 Kinetic 93 | . 21 24 48 Thermal 49 | . 21 15 13 Explosive . | . . . . Electromagnetic . | . . . . Robot Hit Streak 11 | . 4 9 11 Robot Miss Streak 7 | . 7 3 3 Penetration Max . | . . . . Secondary Targets 2 | . 1 1 . Max Gunslinging Chain 1 | . 1 1 . Shots Hit Robots 95 | . 21 29 45 Core Hits 39 | . 8 17 14 Critical Kills . | . . . . Critical Parts Destroyed . | . . . . Critical Strikes . | . . . . Melee Attacks 2 | . . 2 . Impact . | . . . . Slashing 2 | . . 2 . Piercing . | . . . . Sneak Attacks . | . . . . Combat Hostiles . | . . . . Follow-up Attacks . | . . . . Damage Inflicted 1110 | . 255 366 489 Guns 866 | . 255 307 304 Cannons 141 | . . . 141 Explosions . | . . . . Melee 59 | . . 59 . Ramming . | . . . . Kinetic 641 | . 152 185 304 Thermal 410 | . 103 122 185 Explosive . | . . . . Electromagnetic . | . . . . Impact . | . . . . Slashing 59 | . . 59 . Piercing . | . . . . Highest Corruption 3 | . 3 . . Average Corruption 2 | . 2 . . Corruption Purged . | . . . . Corruption Blocked . | . . . . Overload Shots . | . . . . Overflow Damage . | . . . . Projectiles . | . . . . Explosions . | . . . . Melee . | . . . . Knockbacks . | . . . . Impact . | . . . . Kinetic . | . . . . Secondary . | . . . . Self-Inflicted Damage . | . . . . Shots . | . . . . Rammed . | . . . . Targets Rammed . | . . . . Kicked . | . . . . Crushed . | . . . . Highest Temperature 121 | . 121 81 98 Average Temperature 49 | . 67 45 31 Received Heat Transfer 1200 | . 132 123 945 Siege Activations . | . . . . Martial Activations . | . . . . Shielding Activations . | . . . . Robots Disrupted . | . . . . Combat Hostiles . | . . . . Robots Corrupted . | . . . . Combat Hostiles . | . . . . Parts Fried . | . . . . Impact Corruptions . | . . . . Robots Melted . | . . . . Combat Hostiles . | . . . . Parts Melted . | . . . . Heat Transferred 907 | . 225 275 407 Parts Sabotaged . | . . . . Parts Stolen . | . . . . Parts Stripped . | . . . . Power Chain Reactions . | . . . . Alert | -11 -10 -9 -8 ------- Run | Yrd Mat Mat Mat Maximum Alert Level . | . . . . Low Security (%) 100 | 100 100 100 100 Level 1 . | . . . . Level 2 . | . . . . Level 3 . | . . . . Level 4 . | . . . . Level 5 . | . . . . High Security . | . . . . Max Security . | . . . . Peak Influence 61 | . 61 60 30 Initial 15 | . . 6 15 Average 13 | . 27 17 4 Influence Increases 403 | . 126 197 80 Destroy 0b10 Robot/C 320 | . 100 160 60 Destroy 0b10 Robot/NC 10 | . 5 5 . Destroy Leader 72 | . 20 32 20 Destroy Structure 1 | . 1 . . Influence Decreases 403 | . 110 176 117 Entered New Map 32 | . . 10 22 Time Decay 251 | . 100 96 55 Lost Part 120 | . 10 70 40 Squads Dispatched 7 | . 2 . 5 Investigation 2 | . 1 . 1 Extermination . | . . . . Reinforcement 2 | . 1 . 1 Assault . | . . . . Garrison 3 | . . . 3 Intercept . | . . . . Searches Triggered . | . . . . Construction Impeded . | . . . . Haulers Reinforced . | . . . . Active Scanning Responses . | . . . . Cargo Convoy Interrupts . | . . . . Stealth | -11 -10 -9 -8 --------- Run | Yrd Mat Mat Mat Distress Signals 4 | . 1 . 3 Communications Jammed . | . . . . Distress Signals . | . . . . Times Spotted 28 | . 9 12 7 Peak Tracking Total 7 | . 3 7 4 Tactical Retreats . | . . . . Traps | -11 -10 -9 -8 ------- Run | Yrd Mat Mat Mat Traps Triggered 3 | . 3 . . Indirectly . | . . . . Trap Hack Attempts . | . . . . Triggered . | . . . . Disarmed . | . . . . Reprogrammed . | . . . . Reused . | . . . . Traps Extracted . | . . . . Installed . | . . . . Triggered . | . . . . Machines | -11 -10 -9 -8 ---------- Run | Yrd Mat Mat Mat Machines Disabled . | . . . . Max in Single Turn . | . . . . Machines Repaired . | . . . . Machines Dismantled . | . . . . Machines Sabotaged . | . . . . Overloaded Fab Kills . | . . . . Hacking | -11 -10 -9 -8 --------- Run | Yrd Mat Mat Mat Machines Accessed . | . . . . Terminals . | . . . . Fabricators . | . . . . Repair Stations . | . . . . Recycling Units . | . . . . Scanalyzers . | . . . . Garrison Access . | . . . . Total Hacks . | . . . . Successful . | . . . . Failed . | . . . . Catastrophic . | . . . . Database Lockouts . | . . . . Manual . | . . . . Terminals . | . . . . Fabricators . | . . . . Repair Stations . | . . . . Recycling Units . | . . . . Scanalyzers . | . . . . Garrison Access . | . . . . Terminal Hacks . | . . . . Fabricator Hacks . | . . . . Repair Station Hacks . | . . . . Recycling Unit Hacks . | . . . . Scanalyzer . | . . . . Garrison Access Hacks . | . . . . Unauthorized Hacks . | . . . . Terminals . | . . . . Fabricators . | . . . . Repair Stations . | . . . . Recycling Units . | . . . . Scanalyzers . | . . . . Garrison Access . | . . . . Data Cores Recovered . | . . . . Used . | . . . . Hacking Detections . | . . . . Full Trace Events . | . . . . Feedback Events . | . . . . Feedback Blocked . | . . . . Robot Schematics Acquired . | . . . . Robots Built . | . . . . Authchips . | . . . . Time . | . . . . Total Robot Build Rating . | . . . . Part Schematics Acquired . | . . . . Parts Built . | . . . . Authchips . | . . . . Time . | . . . . Total Part Build Rating . | . . . . Part Studies Acquired . | . . . . Parts Repaired . | . . . . Time . | . . . . Parts Recycled . | . . . . Recycled Matter . | . . . . Retrieved Matter . | . . . . Retrieved Components . | . . . . Parts Scanalyzed . | . . . . Part Schematics Acquired . | . . . . Parts Damaged . | . . . . Bothacking | -11 -10 -9 -8 ------------ Run | Yrd Mat Mat Mat Used RIF Installer . | . . . . Robots Hacked . | . . . . Non-combat . | . . . . Combat . | . . . . Robot Hacks Applied . | . . . . Relay Couplers Released . | . . . . Fabnet Peak Effective % . | . . . . Robots Rewired . | . . . . Allies Hacked . | . . . . Hacks Repelled . | . . . . Allies | -11 -10 -9 -8 -------- Run | Yrd Mat Mat Mat Total Allies . | . . . . Largest Group . | . . . . Highest-Rated Group . | . . . . Highest-Rated Ally . | . . . . Total Orders . | . . . . Ally Attacks . | . . . . Total Damage . | . . . . Kills . | . . . . Allies Corrupted . | . . . . Allies Melted . | . . . . Intel | -11 -10 -9 -8 ------- Run | Yrd Mat Mat Mat Active Infowar (turns) 250 | . . . 250 Traps 173 | . . . 173 ECM 77 | . . . 77 Robot Analysis Total . | . . . . Derelict Logs Recovered . | . . . . Drone Launches . | . . . . Drone Recoveries . | . . . . Exploration | -11 -10 -9 -8 ------------- Run | Yrd Mat Mat Mat Turns Passed 1096 | 80 231 348 437 Spaces Moved 645 | 43 133 273 196 Core 33 | 26 . 1 6 Treads . | . . . . Legs 247 | 17 133 12 85 Wheels 365 | . . 260 105 Hover . | . . . . Flight . | . . . . Fastest Speed 50 | 50 120 80 85 Average Speed 114 | 157 120 91 133 Slowest Speed 350 | 200 120 300 350 Overloaded Moves . | . . . . Propulsion Burnouts . | . . . . Robots Hopped . | . . . . Potential Cave-ins . | . . . . Cave-ins Triggered . | . . . . Exploration Rate (%) 18 | 4 28 25 15 Regions Visited 3 Branch Regions . Pre-discovered Areas . | . . . . Known Exits Taken . | . . . . Unknown Exits Taken 3 | 1 1 1 . Scrap Searched . | . . . . Spaces Dug . | . . . . Terrain Destroyed . | . . . . Melee . | . . . . Projectile . | . . . . AOE . | . . . . Terrain Rammed . | . . . . Walls Destroyed . | . . . . Machines Disabled . | . . . . Actions | -11 -10 -9 -8 --------- Run | Yrd Mat Mat Mat Total 853 | 52 162 328 311 Wait 44 | . . 13 31 Move 642 | 42 132 272 196 Hop . | . . . . Pick Up 14 | 3 4 4 3 Fast Attach 18 | 6 1 2 9 Attach 14 | . 1 6 7 Detach . | . . . . Swap 11 | 1 2 2 6 Drop 5 | . 1 . 4 Fire 103 | . 21 27 55 Melee 2 | . . 2 . Ram . | . . . . Kick . | . . . . Crush . | . . . . Escape Stasis . | . . . . Rewire . | . . . . Trap . | . . . . Miscellaneous . | . . . . Route ------- -11/Scrapyard -10/Materials -9/Materials -8/Materials History --------- Turn | Location | Event 53 | -11/Scrapyard | Discovered new exit (range 14) 81 | -11/Scrapyard | Entered Materials 293 | -10/Materials | Discovered new exit (range 13) 312 | -10/Materials | Entered another Materials area 312 | -9/Materials | Evolved 2 slots: Propulsion x2 334 | -9/Materials | Build established: Mutant 496 | -9/Materials | Lost 3 parts (2n1w) 545 | -9/Materials | Lost 3 parts (2n1w) 647 | -9/Materials | Discovered new exit (range 16) 660 | -9/Materials | Entered another Materials area 660 | -8/Materials | Evolved 2 slots: Utility x2 704 | -8/Materials | Garrison activated, responded to threat 763 | -8/Materials | Lost 3 parts (1p1n1u) 1012 | -8/Materials | Core integrity fell below 50% 1048 | -8/Materials | Core integrity fell below 20% 1087 | -8/Materials | Lost 12 parts (2p4n3u3w) 1097 | -8/Materials | Destroyed by Y-45 Defender with Heavy Assault Rifle Last Messages --------------- Aluminum Leg destroyed. Lgt. Assault Rifle destroyed. G-47 Trooper destroyed. Critical hit (Burn: +37). Acquired 43 matter. Particle Cannon destroyed. K-01 Serf collects debris. G-47 Trooper destroyed. Lgt. Armor Plating destroyed. Lgt. Assault Rifle destroyed. Acquired 47 matter. Critical hit (Burn: +37). Acquired Lgt. Nuclear Core. K-01 Serf collects debris. Acquired Aluminum Leg. Lgt. Nuclear Core destroyed. K-01 Serf collects debris. K-01 Serf destroyed. K-01 Serf collects debris. Lgt. Ion Engine destroyed. Map ----- +----------------------------------------------------+ | ?????????????????????????????????????########??? | | ?????????????????????????????????????# !##?? | | ?????????????????????????????????????# ! !#?? | | ?????????????????????????????????????# !#?? | | ?????????????????????????????????????# !#?? | | ?????????????????????????????????????# !#?? | | ????????????????????????????######???# !##?? | | ????????????????????????????# #??## ####??? | | ????????????????????????????# #??# #????? | | ????????????????????????????# #??# #????? | | ????????????????????????????# #### T #????? | | ????????????????????????????# + #????? | | ????????????????????????????# # ## #????? | | ????????????????????????????# # ####+#####??? | | ????????????????????????????# # # #??? | | ????????????????????????????# # # #??? | | ????????????????????????????###### # #??? | | ?????????????????????????????????# #[ #### | | ?????????????????????????????????# # "" # | | ?????????????????????????????????# # G"# | | ???????????????????############### # * "" # | | ???????????????????# ## # !#### | | ???????????????????# """" """" ## # = #??? | | ???????????????????#!"""" """" ## ##########??? | | ???????????????????# """" """" ## #?# #??? | | ???????????????????# @ * ## #?# #??? | | ???????????????????#######Y####### ### #??? | | ????????????????????????# + #??? | | ?????????????????????#### # #??? | | ?????????????????????#=%! # / #??? | | ?????????????????????# =* ########??? | | ?????????????????????# #??? | | ?????????????????????# #??? | | ????? #####+######### #??? | | ???? ########+#### #??? | | ???? #????# + #??? | | ???? #????# """ ### #??? | | ????? ###+##################????# """ #?# #??? | | ?????????????????????????????????# """ #?# #??? | | ?????????????????????????????????# #?# #??? | | ?????????????????????????????????# ! #?# #??? | | ?????????????????????????????????########?# #??? | | ????????????????????????????????????????###+#### | | ????????????????????????????????????????# # | | ????????????????????????????????????????#""" # | | ????????????????????????????????????????#"R # | | ????????????????????????????????????????#""" # | | ????????????????????????????????????????# # | | ????????????????????????????????????????# # | | ????????????????????????????????????????######## | +----------------------------------------------------+ Best States ------------- Heat Dissipation 45 Energy Generation 14 Energy Capacity 275 Matter Stores 351 Matter Capacity 450 Sight Range 16 Terrain Scan Density 10 ECM Strength 1 Armor Coverage 150 Power Shielding 33 Propulsion Shielding 66 Evasion (%) 55 Item Schematics ----------------- None Robot Schematics ------------------ None Fabricated ------------ Nothing Repaired ---------- Nothing Studied --------- None Alien Tech Used ----------------- None Achievements -------------- None Challenges ------------ None Game ------ Seed GreatRingMicroactuators Manual? 0 Play Time 00:17:23 Cumulative 33.7 hours Start 2026.09.17 @ 10:58:17 End 2026.09.17 @ 11:12:47 Sessions 1 Manual Loads 0 Difficulty Rogue Special Mode None Game No. 51 Rogue 51 Adventurer 0 Explorer 0 Win Type - Total 0 Types 0/0/0/0/0/0/0/0/0/0 Lore% 24 Gallery% 22 Achievement% 18 Wizard Run 0 Options --------- Layout 1 ASCII 0 Keyboard 0 Movement Mouse Keybinds 0 Fullscreen 1 Font 16/SmallcapsGlow Map View 50x40 Zoom Use 0% Tactical HUD 0 Map Filters NONE Filters NONE Steam SD RUN: 12252ca4-e2e7-437e-a9df-71e06b93b44a